fUST/lending_fUST_20240219
["ID","MTS","AMOUNT","RATE_DAILY","PERIOD"]
[314413897,1708312232656,-163.88804211,0.00020159,2]
[314413898,1708312232665,-4481.96197122,0.00020369,2]
[314413899,1708312232675,-393.53250102,0.00021342,2]
[314413900,1708312232684,-185.69,0.00021432,3]
[314413901,1708312232693,-557.07,0.00021432,3]
[314413902,1708312232702,-20600.98,0.00021432,3]
[314413903,1708312232711,-17167.48,0.00021432,3]
[314413904,1708312232721,-14306.24,0.00021432,3]
[314413905,1708312232729,-27697.10198442,0.00021442,2]
[314413906,1708312238639,-2721.57664766,0.00021442,2]
[314414004,1708312243642,-9854.17462159,0.00021432,3]
[314414021,1708312417925,733.86938524,0.00019342,2]
[314414022,1708312430550,500.0,0.00033,120]
[314414023,1708312662435,444.555542,0.00027397,120]
[314414024,1708312662660,444.555542,0.00031963,120]
[314414025,1708312874597,24900.0,0.00019691,2]
[314414026,1708313019071,489.24625682,0.00019342,2]
[314414036,1708313348402,222.277771,0.00027397,120]
[314414037,1708313348815,222.277771,0.00031963,120]
[314414682,1708313439635,-303.6388,0.0002041,2]
[314414683,1708313439644,-691.20055697,0.0002041,2]
[314414684,1708313439654,-524.609802,0.00020411,2]
[314414685,1708313439663,-335.7844429,0.00020412,2]
[314414686,1708313439672,-212.31781007,0.00020413,2]
[314414687,1708313439681,-160.1561248,0.0002044,2]
[314414688,1708313439690,-158.57187829,0.00020586,2]
[314414689,1708313439700,-6082.91419509,0.00020774,2]
[314414690,1708313439709,-169.559049,0.00020811,2]
[314414691,1708313439718,-18551.2565624,0.000209,2]
[314414692,1708313439727,-180.80536989,0.00021342,2]
[314414693,1708313439737,-253.721938,0.00021432,2]
[314414694,1708313439746,-7897.91023989,0.00021442,2]
[314414707,1708313506274,500.0,0.00026568,120]
[314414708,1708313506490,500.0,0.00026568,120]
[314414709,1708313507073,500.0,0.00026568,120]
[314414710,1708313507256,500.0,0.00026568,120]
[314414711,1708313508037,500.0,0.00026568,120]
[314414712,1708313508632,500.0,0.00026568,120]
[314414713,1708313509009,500.0,0.00026568,120]
[314414714,1708313509459,500.0,0.00026568,120]
[314414715,1708313509683,500.0,0.00026568,120]
[314414716,1708313510258,500.0,0.00026568,120]
[314414717,1708313510505,402.46,0.00026568,120]
[314414718,1708313511107,500.0,0.00026568,120]
[314414719,1708313512312,500.0,0.00026568,120]
[314414720,1708313513141,500.0,0.00026568,120]
[314414721,1708313513879,500.0,0.00026568,120]
[314414722,1708313514664,500.0,0.00026568,120]
[314414723,1708313515461,500.0,0.00026568,120]
[314414724,1708313516256,500.0,0.00026568,120]
[314414725,1708313517062,500.0,0.00026568,120]
[314414726,1708313517835,500.0,0.00026568,120]
[314414727,1708313518638,500.0,0.00026568,120]
[314414728,1708313519412,500.0,0.00026568,120]
[314414729,1708313520255,500.0,0.00026568,120]
[314414730,1708313521025,500.0,0.00026568,120]
[314414731,1708313521809,500.0,0.00026568,120]
[314414732,1708313522630,500.0,0.00026568,120]
[314414733,1708313523405,500.0,0.00026568,120]
[314414734,1708313524190,500.0,0.00026568,120]
[314414735,1708313525127,500.0,0.00026568,120]
[314414736,1708313525830,500.0,0.00026568,120]
[314414737,1708313526651,500.0,0.00026568,120]
[314414738,1708313527445,500.0,0.00026568,120]
[314414739,1708313528215,500.0,0.00026568,120]
[314414740,1708313530267,500.0,0.00026568,120]
[314414741,1708313531166,500.0,0.00026568,120]
[314414742,1708313531867,500.0,0.00026568,120]
[314414743,1708313532648,500.0,0.00026568,120]
[314414744,1708313533405,500.0,0.00026568,120]
[314414745,1708313534199,500.0,0.00026568,120]
[314414746,1708313535419,500.0,0.00026568,120]
[314414747,1708313536226,500.0,0.00026568,120]
[314414748,1708313537030,500.0,0.00026568,120]
[314414749,1708313537945,500.0,0.00026568,120]
[314414750,1708313538720,500.0,0.00026568,120]
[314414751,1708313540250,500.0,0.00026568,120]
[314414752,1708313541026,500.0,0.00026568,120]
[314414753,1708313541794,500.0,0.00026568,120]
[314414754,1708313542592,500.0,0.00026568,120]
[314414755,1708313543369,500.0,0.00026568,120]
[314414756,1708313544233,500.0,0.00026568,120]
[314414757,1708313544949,500.0,0.00026568,120]
[314414758,1708313545719,500.0,0.00026568,120]
[314414759,1708313546527,500.0,0.00026568,120]
[314414760,1708313547307,500.0,0.00026568,120]
[314414761,1708313548157,500.0,0.00026568,120]
[314414762,1708313548854,500.0,0.00026568,120]
[314414763,1708313549633,500.0,0.00026568,120]
[314414764,1708313550434,500.0,0.00026568,120]
[314414765,1708313551225,500.0,0.00026568,120]
[314414766,1708313552273,500.0,0.00026568,120]
[314414767,1708313553228,500.0,0.00026568,120]
[314414768,1708313553853,500.0,0.00026568,120]
[314414769,1708313554690,500.0,0.00026568,120]
[314414770,1708313555814,500.0,0.00026568,120]
[314414771,1708313558151,500.0,0.00026568,120]
[314414772,1708313558448,500.0,0.00026568,120]
[314414773,1708313558943,216.87,0.00026568,120]
[314414774,1708313625290,500.0,0.00026568,120]
[314414775,1708313626060,500.0,0.00026568,120]
[314414776,1708313626881,500.0,0.00026568,120]
[314414777,1708313689555,16186.47400588,0.00033,120]
[314414778,1708313834850,151.03927021,0.00024731,120]
[314414779,1708313849942,6250.0,0.00027397,120]
[314414780,1708313850249,6250.0,0.00031963,120]
[314414781,1708314173413,151.04078101,0.00024855,120]
[314414782,1708314332900,6250.0,0.00027397,120]
[314414783,1708314333146,6250.0,0.00031963,120]
[314414784,1708314427723,151.04078101,0.00024917,120]
[314414813,1708314632010,-212.31781007,0.00020112,2]
[314414814,1708314632020,-261.59492083,0.00020112,2]
[314414815,1708314632029,-73.62152099,0.00020113,2]
[314414816,1708314632041,-450.98828101,0.00020113,2]
[314414817,1708314632050,-691.20055697,0.00020114,2]
[314414818,1708314632059,-213.00508366,0.00020115,2]
[314414819,1708314632069,-169.559049,0.00020138,2]
[314414820,1708314632078,-19236.33823696,0.00020635,2]
[314414842,1708314638007,-1196.70773582,0.00020635,2]
[314414969,1708314643059,-632.59647099,0.00020635,2]
[314414970,1708314643085,-444.97209498,0.00020635,2]
[314414976,1708314646048,-3389.38546125,0.00020635,2]
[314414977,1708314646058,-159.75479002,0.00021342,2]
[314414978,1708314646067,-8068.85975318,0.00021442,2]
[314414983,1708314775588,3238.040598,0.00027397,120]
[314414984,1708314775819,3238.040598,0.00031963,120]
[314414994,1708315152193,-193.7103742,0.00020891,3]
[314414995,1708315152222,-406.2896258,0.00020989,2]
[314414997,1708315240972,1619.020299,0.00027397,120]
[314414998,1708315241174,1619.020299,0.00031963,120]
[314414999,1708315320204,1565.0,0.00033,120]
[314415000,1708315395800,5000.0,0.00033,120]
[314415001,1708315404309,5000.0,0.00033,120]
[314415002,1708315412501,5000.0,0.00033,120]
[314415003,1708315420618,5000.0,0.00033,120]
[314415032,1708315786959,809.510149,0.00027397,120]
[314415033,1708315787175,809.510149,0.00031963,120]
[314415086,1708315841521,-691.20055697,0.00020577,2]
[314415087,1708315841531,-524.609802,0.00020578,2]
[314415088,1708315841540,-193.7103742,0.00020579,3]
[314415089,1708315841550,-261.59492083,0.00020678,2]
[314415090,1708315841559,-5351.91165209,0.00021,2]
[314415091,1708315841569,-202.88887,0.00021228,2]
[314415092,1708315841579,-3497.08085798,0.00021363,2]
[314415100,1708315844586,-5133.2475978,0.00021363,2]
[314415113,1708315844704,-2997.95213574,0.00021363,2]
[314415115,1708315844716,-2143.06611488,0.00021363,2]
[314415117,1708315844725,-1020.38324005,0.00021442,2]
[314415217,1708315849619,-2594.1681348,0.00021442,2]
[314415218,1708315849628,-13199.81574899,0.00021716,2]
[314415219,1708316224059,2500.0,0.00033,120]
[314415220,1708316242714,404.755074,0.00027397,120]
[314415221,1708316242945,404.755074,0.00031963,120]
[314415222,1708316702922,202.377537,0.00027397,120]
[314415223,1708316703002,202.377537,0.00031963,120]
[314415224,1708316904825,24900.0,0.00019801,2]
[314415353,1708317046392,-177.82123,0.00020004,2]
[314415354,1708317046402,-524.609802,0.00020219,2]
[314415355,1708317046411,-388.868968,0.0002022,2]
[314415356,1708317112152,2682.78607002,0.0002,2]
[314415357,1708317228847,953.29456401,0.000189,2]
[314415358,1708317232555,202.377537,0.00027397,120]
[314415359,1708317389628,21778.4168742,0.00019896,2]
[314415360,1708317391365,2000.0,0.00033,120]
[314415361,1708317722282,202.377537,0.00027397,120]
[314415362,1708317828557,170.68414497,0.0002,2]
[314415363,1708317830389,635.52970934,0.000189,2]
[314415364,1708317844676,170.68414497,0.0002,2]
[314415365,1708317866565,155.04496304,0.0002,2]
[314415366,1708317886552,155.04496304,0.0002,2]
[314415367,1708317904553,155.04496304,0.0002,2]
[314415368,1708317947211,1440.0,0.00033,120]
[314415374,1708318183073,248.94255662,0.0002005,14]
[314415419,1708318232585,-155.04496304,0.00020113,2]
[314415421,1708318232596,-691.20055697,0.00020113,2]
[314415423,1708318232605,-155.04496304,0.00020114,2]
[314415424,1708318232615,-7.69038989,0.0002012,2]
[314415425,1708318232627,-147.83736851,0.0002012,2]
[314415426,1708318232636,-155.04341216,0.00020234,2]
[314415427,1708318232645,-261.59492083,0.00020742,2]
[314415428,1708318232654,-168.5348308,0.00020746,2]
[314415429,1708318232663,-200.89805268,0.00021254,4]
[314415430,1708318232672,-1553.91573493,0.00021352,2]
[314415431,1708318232685,-1348.34555049,0.00021352,2]
[314415435,1708318239266,-1782.06817605,0.00021352,2]
[314415445,1708318241863,-4088.90611268,0.00021352,2]
[314415504,1708318244307,-1986.27378729,0.00020137,2]
[314415550,1708319033425,423.68647289,0.00019252,2]
[314415555,1708319235488,173.004196,0.00019922,2]
[314415586,1708319431785,-537.8027266,0.00020033,2]
[314415587,1708319431795,-155.06222807,0.00020037,2]
[314415588,1708319431804,-163.38875591,0.00020037,2]
[314415589,1708319431813,-48013.72621271,0.00020137,2]
[314415590,1708319431823,-155.04496304,0.00020137,2]
[314415591,1708319431832,-625.59326959,0.00020435,2]
[314415592,1708319431841,-300.0,0.00020503,2]
[314415593,1708319431850,-300.0,0.0002087,2]
[314415594,1708319431859,-3922.29802284,0.00021,2]
[314415595,1708319431868,-153.0,0.00021,2]
[314415597,1708319431877,-153.0,0.00021,2]
[314415598,1708319431887,-307.057382,0.00021,2]
[314415600,1708319431896,-154.0596451,0.00021,2]
[314415602,1708319431906,-153.0,0.00021,2]
[314415604,1708319431916,-153.0,0.00021041,2]
[314415605,1708319431925,-352.11922518,0.00021098,2]
[314415606,1708319431934,-153.0,0.000211,2]
[314415607,1708319431944,-153.0,0.000211,2]
[314415608,1708319431954,-352.11922517,0.00021107,2]
[314415609,1708319431964,-352.11922517,0.00021115,2]
[314415610,1708319431974,-352.11922517,0.00021124,2]
[314415611,1708319431983,-352.11922517,0.00021132,2]
[314415612,1708319431992,-860.12,0.00021168,3]
[314415613,1708319432002,-151.0,0.00021178,2]
[314415614,1708319432012,-5050.15077805,0.00021178,3]
[314415665,1708319442778,-537.80272664,0.00021168,3]
[314415705,1708319634562,395.56090019,0.00019068,2]
[314415706,1708320034498,7264.43751763,0.00021188,10]
[314415707,1708320235911,263.7072668,0.00019088,2]
[314415713,1708320433503,10000.0,0.00033,120]
[314415714,1708320444853,12000.0,0.00033,120]
[314415723,1708320481563,5000.0,0.00023,28]
[314415774,1708321058651,160.99202518,0.00033,120]
[314415775,1708321116001,79505.19607025,0.0002,2]
[314415776,1708321188526,197.6901,0.00019836,2]
[314415777,1708321228190,196.621486,0.0001982,2]
[314415786,1708321371673,186.31351592,0.00019904,2]
[314415790,1708321434796,1516.2642425,0.00019857,2]
[314415791,1708321438079,241.76355709,0.000189,2]
[314415795,1708321512042,273.59087979,0.0002,2]
[314415800,1708321686706,524.609802,0.0002,2]
[314415803,1708321807714,24900.0,0.00019899,2]
[314415804,1708321817722,524.609802,0.0002,2]
[314415814,1708321832133,-620.27966348,0.00020384,2]
[314415815,1708321832143,-159.896641,0.00020426,2]
[314415817,1708321832152,-5816.03926064,0.00021075,2]
[314415819,1708321832161,-180.159324,0.00021094,2]
[314415821,1708321832170,-151.0,0.00021094,2]
[314415823,1708321832180,-151.0,0.00021094,2]
[314415825,1708321832188,-200.3472215,0.000211,2]
[314415828,1708321832197,-27878.8,0.00021102,3]
[314415831,1708321832206,-23232.34,0.00021102,3]
[314415833,1708321832215,-5219.00411985,0.00021102,3]
[314415851,1708321843164,-213.00508366,0.00020383,2]
[314415852,1708321843173,-3010.67120884,0.00021102,3]
[314415859,1708321846230,-151.0,0.00021104,2]
[314415860,1708321846239,-151.0,0.00021104,2]
[314415861,1708321846248,-524.609802,0.00021111,2]
[314415863,1708321846257,-500.0,0.00021111,2]
[314415865,1708321846266,-500.0,0.00021111,2]
[314415867,1708321846274,-500.0,0.00021111,2]
[314415869,1708321846283,-500.0,0.00021111,2]
[314415871,1708321846292,-500.0,0.00021111,2]
[314415873,1708321846301,-500.0,0.00021111,2]
[314415875,1708321846310,-500.0,0.00021111,2]
[314415877,1708321846320,-500.0,0.00021111,2]
[314415879,1708321846329,-541.54342539,0.00021111,2]
[314415881,1708321846338,-636.60074027,0.00021111,2]
[314415883,1708321846347,-500.0,0.00021111,2]
[314415885,1708321846356,-500.0,0.00021111,2]
[314415887,1708321846365,-500.0,0.00021111,2]
[314415889,1708321846377,-500.0,0.00021111,2]
[314415891,1708321846386,-500.0,0.00021111,2]
[314415893,1708321846394,-500.0,0.00021111,2]
[314415895,1708321846403,-500.0,0.00021111,2]
[314415897,1708321846412,-500.0,0.00021111,2]
[314415899,1708321846421,-203.58683103,0.00021111,2]
[314415901,1708321846430,-156.89405624,0.00021111,2]
[314415903,1708321846440,-500.0,0.00021111,2]
[314415904,1708321846449,-500.0,0.00021111,2]
[314415905,1708321846458,-500.0,0.00021111,2]
[314415906,1708321846467,-500.0,0.00021111,2]
[314415907,1708321846476,-500.0,0.00021111,2]
[314415908,1708321846485,-500.0,0.00021111,2]
[314415909,1708321846493,-500.0,0.00021111,2]
[314415910,1708321846502,-500.0,0.00021111,2]
[314415911,1708321846512,-500.0,0.00021111,2]
[314415912,1708321846521,-246.34881492,0.00021111,2]
[314415913,1708321846530,-500.0,0.00021111,2]
[314415914,1708321846540,-500.0,0.00021111,2]
[314415915,1708321846549,-500.0,0.00021111,2]
[314415916,1708321846558,-500.0,0.00021111,2]
[314415917,1708321846567,-500.0,0.00021111,2]
[314415918,1708321846576,-500.0,0.00021111,2]
[314415919,1708321846586,-500.0,0.00021111,2]
[314415920,1708321846595,-500.0,0.00021111,2]
[314415921,1708321846604,-500.0,0.00021111,2]
[314415922,1708321846614,-500.0,0.00021111,2]
[314415923,1708321846624,-500.0,0.00021111,2]
[314415924,1708321846633,-500.0,0.00021111,2]
[314415925,1708321846642,-500.0,0.00021111,2]
[314415926,1708321846652,-500.0,0.00021111,2]
[314415927,1708321846662,-500.0,0.00021111,2]
[314415929,1708321846672,-500.0,0.00021111,2]
[314415931,1708321846683,-500.0,0.00021111,2]
[314415933,1708321846692,-500.0,0.00021111,2]
[314415935,1708321846701,-500.0,0.00021111,2]
[314415937,1708321846711,-500.0,0.00021111,2]
[314415939,1708321846720,-500.0,0.00021111,2]
[314415941,1708321846729,-500.0,0.00021111,2]
[314415943,1708321846738,-500.0,0.00021111,2]
[314415944,1708321846747,-500.0,0.00021111,2]
[314415946,1708321846757,-250.0,0.00021111,2]
[314415948,1708321846766,-500.0,0.00021111,2]
[314415950,1708321846775,-500.0,0.00021111,2]
[314415952,1708321846784,-500.0,0.00021111,2]
[314415954,1708321846792,-500.0,0.00021111,2]
[314415956,1708321846801,-500.0,0.00021111,2]
[314415958,1708321846811,-500.0,0.00021111,2]
[314415960,1708321846820,-360.96338865,0.00021111,2]
[314415962,1708321846829,-500.0,0.00021111,2]
[314415964,1708321846840,-500.0,0.00021111,2]
[314415966,1708321846852,-500.0,0.00021111,2]
[314415968,1708321846860,-500.0,0.00021111,2]
[314415969,1708321846870,-500.0,0.00021111,2]
[314415972,1708321846880,-500.0,0.00021111,2]
[314415974,1708321846889,-465.89419262,0.00021111,2]
[314415976,1708321846898,-500.0,0.00021111,2]
[314415978,1708321846907,-500.0,0.00021111,2]
[314415980,1708321846918,-500.0,0.00021111,2]
[314415982,1708321846927,-500.0,0.00021111,2]
[314415984,1708321846935,-500.0,0.00021111,2]
[314415986,1708321846945,-500.0,0.00021111,2]
[314415988,1708321846953,-500.0,0.00021111,2]
[314415990,1708321846962,-297.08767628,0.00021111,2]
[314415992,1708321846971,-500.0,0.00021111,2]
[314415994,1708321846980,-500.0,0.00021111,2]
[314415996,1708321846989,-500.0,0.00021111,2]
[314415998,1708321846997,-500.0,0.00021111,2]
[314415999,1708321847007,-500.0,0.00021111,2]
[314416001,1708321847016,-500.0,0.00021111,2]
[314416003,1708321847025,-184.33768926,0.00021111,2]
[314416005,1708321847034,-500.0,0.00021111,2]
[314416007,1708321847043,-500.0,0.00021111,2]
[314416009,1708321847052,-500.0,0.00021111,2]
[314416011,1708321847061,-500.0,0.00021111,2]
[314416013,1708321847069,-500.0,0.00021111,2]
[314416015,1708321847078,-500.0,0.00021111,2]
[314416017,1708321847087,-500.0,0.00021111,2]
[314416019,1708321847096,-500.0,0.00021111,2]
[314416021,1708321847105,-500.0,0.00021111,2]
[314416023,1708321847114,-500.0,0.00021111,2]
[314416025,1708321847124,-500.0,0.00021111,2]
[314416027,1708321847133,-500.0,0.00021111,2]
[314416029,1708321847142,-500.0,0.00021111,2]
[314416031,1708321847155,-500.0,0.00021111,2]
[314416033,1708321847164,-500.0,0.00021111,2]
[314416035,1708321847174,-500.0,0.00021111,2]
[314416037,1708321847183,-500.0,0.00021111,2]
[314416039,1708321847192,-500.0,0.00021111,2]
[314416041,1708321847202,-500.0,0.00021111,2]
[314416043,1708321847211,-500.0,0.00021111,2]
[314416045,1708321847220,-500.0,0.00021111,2]
[314416047,1708321847229,-500.0,0.00021111,2]
[314416049,1708321847240,-500.0,0.00021111,2]
[314416051,1708321847249,-500.0,0.00021111,2]
[314416053,1708321847258,-500.0,0.00021111,2]
[314416055,1708321847267,-500.0,0.00021111,2]
[314416057,1708321847277,-500.0,0.00021111,2]
[314416059,1708321847286,-500.0,0.00021111,2]
[314416061,1708321847296,-500.0,0.00021111,2]
[314416063,1708321847305,-500.0,0.00021111,2]
[314416065,1708321847314,-500.0,0.00021111,2]
[314416067,1708321847323,-500.0,0.00021111,2]
[314416069,1708321847333,-500.0,0.00021111,2]
[314416071,1708321847342,-500.0,0.00021111,2]
[314416073,1708321847351,-500.0,0.00021111,2]
[314416076,1708321847361,-500.0,0.00021111,2]
[314416078,1708321847370,-500.0,0.00021111,2]
[314416079,1708321847380,-500.0,0.00021111,2]
[314416082,1708321847390,-500.0,0.00021111,2]
[314416084,1708321847400,-500.0,0.00021111,2]
[314416086,1708321847411,-500.0,0.00021111,2]
[314416088,1708321847421,-500.0,0.00021111,2]
[314416090,1708321847430,-500.0,0.00021111,2]
[314416092,1708321847441,-500.0,0.00021111,2]
[314416094,1708321847450,-500.0,0.00021111,2]
[314416096,1708321847459,-557.70154081,0.00021111,2]
[314416098,1708321847468,-500.0,0.00021111,2]
[314416100,1708321847478,-500.0,0.00021111,2]
[314416102,1708321847487,-500.0,0.00021111,2]
[314416104,1708321847497,-500.0,0.00021111,2]
[314416106,1708321847506,-500.0,0.00021111,2]
[314416108,1708321847515,-500.0,0.00021111,2]
[314416110,1708321847525,-500.0,0.00021111,2]
[314416112,1708321847534,-500.0,0.00021111,2]
[314416114,1708321847544,-500.0,0.00021111,2]
[314416116,1708321847554,-500.0,0.00021111,2]
[314416118,1708321847563,-500.0,0.00021111,2]
[314416119,1708321847573,-500.0,0.00021111,2]
[314416121,1708321847582,-500.0,0.00021111,2]
[314416122,1708321847592,-500.0,0.00021111,2]
[314416124,1708321847601,-500.0,0.00021111,2]
[314416126,1708321847611,-500.0,0.00021111,2]
[314416128,1708321847622,-500.0,0.00021111,2]
[314416130,1708321847630,-500.0,0.00021111,2]
[314416132,1708321847639,-500.0,0.00021111,2]
[314416134,1708321847648,-500.0,0.00021111,2]
[314416136,1708321847657,-500.0,0.00021111,2]
[314416138,1708321847666,-500.0,0.00021111,2]
[314416140,1708321847675,-500.0,0.00021111,2]
[314416142,1708321847684,-500.0,0.00021111,2]
[314416144,1708321847693,-500.0,0.00021111,2]
[314416146,1708321847702,-500.0,0.00021111,2]
[314416148,1708321847711,-500.0,0.00021111,2]
[314416150,1708321847720,-500.0,0.00021111,2]
[314416151,1708321847729,-500.0,0.00021111,2]
[314416153,1708321847738,-500.0,0.00021111,2]
[314416155,1708321847747,-500.0,0.00021111,2]
[314416157,1708321847757,-500.0,0.00021111,2]
[314416159,1708321847766,-500.0,0.00021111,2]
[314416161,1708321847775,-621.45500968,0.00021111,2]
[314416163,1708321847784,-500.0,0.00021111,2]
[314416165,1708321847793,-500.0,0.00021111,2]
[314416167,1708321847802,-500.0,0.00021111,2]
[314416169,1708321847811,-500.0,0.00021111,2]
[314416171,1708321847821,-500.0,0.00021111,2]
[314416173,1708321847830,-500.0,0.00021111,2]
[314416175,1708321847841,-500.0,0.00021111,2]
[314416177,1708321847851,-500.0,0.00021111,2]
[314416179,1708321847861,-500.0,0.00021111,2]
[314416181,1708321847871,-500.0,0.00021111,2]
[314416183,1708321847880,-500.0,0.00021111,2]
[314416185,1708321847890,-500.0,0.00021111,2]
[314416187,1708321847899,-500.0,0.00021111,2]
[314416189,1708321847909,-500.0,0.00021111,2]
[314416191,1708321847917,-500.0,0.00021111,2]
[314416193,1708321847927,-500.0,0.00021111,2]
[314416195,1708321847936,-500.0,0.00021111,2]
[314416197,1708321847946,-500.0,0.00021111,2]
[314416199,1708321847955,-500.0,0.00021111,2]
[314416201,1708321847965,-500.0,0.00021111,2]
[314416203,1708321847974,-500.0,0.00021111,2]
[314416205,1708321847983,-500.0,0.00021111,2]
[314416207,1708321847992,-500.0,0.00021111,2]
[314416209,1708321848001,-500.0,0.00021111,2]
[314416211,1708321848010,-500.0,0.00021111,2]
[314416213,1708321848020,-428.55581442,0.00021111,2]
[314416215,1708321848029,-500.0,0.00021111,2]
[314416217,1708321848038,-500.0,0.00021111,2]
[314416219,1708321848046,-500.0,0.00021111,2]
[314416220,1708321848055,-500.0,0.00021111,2]
[314416222,1708321848065,-500.0,0.00021111,2]
[314416224,1708321848076,-500.0,0.00021111,2]
[314416226,1708321848085,-500.0,0.00021111,2]
[314416228,1708321848095,-500.0,0.00021111,2]
[314416230,1708321848104,-500.0,0.00021111,2]
[314416232,1708321848113,-500.0,0.00021111,2]
[314416234,1708321848122,-500.0,0.00021111,2]
[314416236,1708321848131,-500.0,0.00021111,2]
[314416238,1708321848140,-500.0,0.00021111,2]
[314416240,1708321848151,-500.0,0.00021111,2]
[314416242,1708321848160,-500.0,0.00021111,2]
[314416244,1708321848169,-500.0,0.00021111,2]
[314416246,1708321848179,-500.0,0.00021111,2]
[314416248,1708321848188,-500.0,0.00021111,2]
[314416260,1708321848298,-500.0,0.00021111,2]
[314416262,1708321848310,-500.0,0.00021111,2]
[314416264,1708321848319,-500.0,0.00021111,2]
[314416266,1708321848328,-500.0,0.00021111,2]
[314416268,1708321848338,-500.0,0.00021111,2]
[314416271,1708321848347,-500.0,0.00021111,2]
[314416272,1708321848356,-500.0,0.00021111,2]
[314416274,1708321848365,-500.0,0.00021111,2]
[314416276,1708321848376,-500.0,0.00021111,2]
[314416278,1708321848385,-500.0,0.00021111,2]
[314416280,1708321848393,-500.0,0.00021111,2]
[314416282,1708321848402,-500.0,0.00021111,2]
[314416284,1708321848412,-500.0,0.00021111,2]
[314416286,1708321848420,-500.0,0.00021111,2]
[314416288,1708321848430,-798.203497,0.00021112,2]
[314416290,1708321848439,-798.203497,0.00021112,2]
[314416292,1708321848448,-798.203497,0.00021112,2]
[314416294,1708321848457,-798.203497,0.00021112,2]
[314416296,1708321848466,-798.203497,0.00021112,2]
[314416298,1708321848475,-798.203497,0.00021112,2]
[314416300,1708321848484,-798.203497,0.00021112,2]
[314416302,1708321848494,-798.203497,0.00021112,2]
[314416304,1708321848503,-798.203497,0.00021112,2]
[314416306,1708321848511,-798.203497,0.00021112,2]
[314416308,1708321848521,-798.203497,0.00021112,2]
[314416310,1708321848530,-798.203497,0.00021112,2]
[314416312,1708321848539,-798.203497,0.00021112,2]
[314416314,1708321848550,-798.203497,0.00021112,2]
[314416316,1708321848559,-798.203497,0.00021112,2]
[314416318,1708321848568,-798.203497,0.00021112,2]
[314416320,1708321848577,-798.203497,0.00021112,2]
[314416322,1708321848587,-798.203497,0.00021112,2]
[314416324,1708321848596,-798.203497,0.00021112,2]
[314416326,1708321848605,-798.203501,0.00021112,2]
[314416328,1708321848614,-151.0,0.00021113,2]
[314416330,1708321848623,-151.0,0.00021113,2]
[314416332,1708321848632,-151.0,0.00021113,2]
[314416334,1708321848641,-151.0,0.00021113,2]
[314416336,1708321848650,-151.0,0.00021113,2]
[314416337,1708321848658,-151.0,0.00021113,2]
[314416339,1708321848667,-151.0,0.00021113,2]
[314416340,1708321848676,-151.0,0.00021113,2]
[314416341,1708321848685,-274.703219,0.00021113,2]
[314416342,1708321848694,-252.14726928,0.00021113,2]
[314416343,1708321848703,-151.0,0.00021114,2]